Cogmind - Beta 11.1 @@@ ROGUE MODE // 2022.12.13 @ 14:55:06 Player: omewwes Result: Destroyed by D-53 Grenadier with Mini Grenade Launcher Performance ------------- Evolutions (0) 0 Regions Visited (4) 800 Robots Destroyed (18) 90 Value Destroyed (641) 641 Prototype IDs (0) 0 Alien Tech Used (0) 0 Bonus (0) 0 TOTAL SCORE: 1531 Bonus ------- None Cogmind --------- Core Integrity 0/250 Matter 294/300 Energy 98/100 System Corruption 0% Temperature Cool (0) Movement Core (50) Location -9/Mines Parts ------- > --- POWER (1) -------- (None) > --- PROPULSION (2) --- (None) > --- UTILITY (2) ------ (None) > --- WEAPON (2) ------- (None) > --- INVENTORY (5) ---- Heat Sink Medium Storage Unit High-capacity Matter Pod (46) Peak State ------------ > --- POWER ------------ Ion Engine > --- PROPULSION ------- Light Treads Light Treads > --- UTILITY ---------- Improved Heat Sink Small Storage Unit > --- WEAPON ----------- Medium Laser Assault Rifle > --- INVENTORY -------- Heat Sink Grenade Launcher [Rating: 9] Favorites ----------- Power Ion Engine Engine Ion Engine Propulsion Light Treads Treads Light Treads Utility Small Storage Unit Device Improved Heat Sink Storage Small Storage Unit Weapon Medium Laser Energy Gun Medium Laser Ballistic Gun Assault Rifle Launcher Grenade Launcher Build | -11 -10 -10 -10 -9 ------- Run | Scr Mat Min Exi Min Slots Evolved . | . . . . . Power . | . . . . . Propulsion . | . . . . . Utility . | . . . . . Weapon . | . . . . . Parts Attached 11 | 6 1 1 1 2 Power 2 | 1 . . . 1 Engine 2 | 1 . . . 1 Core . | . . . . . Reactor . | . . . . . Propulsion 2 | 2 . . . . Treads 2 | 2 . . . . Leg . | . . . . . Wheel . | . . . . . Hover . | . . . . . Flight . | . . . . . Utility 4 | 1 1 1 1 . Device 2 | . 1 1 . . Storage 2 | 1 . . 1 . Processor . | . . . . . Hackware . | . . . . . Protection . | . . . . . Artifact . | . . . . . Weapon 3 | 2 . . . 1 Energy Gun 1 | 1 . . . . Energy Cannon . | . . . . . Ballistic Gun 1 | 1 . . . . Ballistic Cannon . | . . . . . Launcher 1 | . . . . 1 Special Weapon . | . . . . . Impact Weapon . | . . . . . Slashing Weapon . | . . . . . Piercing Weapon . | . . . . . Special Melee Weapon . | . . . . . Unidentified Prototypes . | . . . . . Parts Lost 6 | . . 1 . 5 Power 2 | . . . . 2 Propulsion 1 | . . . . 1 Utility . | . . . . . Weapon 3 | . . 1 . 2 Highest Loss Streak 3 | . . 1 . 3 To Critical Strikes . | . . . . . Average Slot Usage (%) 92 | . 94 95 85 84 Engine 13 | . 14 14 14 13 Treads 26 | . 28 28 28 14 Device 12 | . 8 14 14 14 Storage 14 | . 14 14 14 14 Energy Gun 14 | . 14 14 14 14 Ballistic Gun 7 | . 14 9 . . Launcher 1 | . . . . 14 Naked Turns 3 | . . . . 3 Heaviest Build 21 | 14 15 15 18 21 Greatest Support 40 | 40 40 40 40 20 Greatest Overweight (x) 1 | . . . . 1 Average Overweight (x) . | . . . . . Largest Inventory Capacity 10 | 8 8 8 10 10 Average Capacity 8 | 6 8 8 8 9 Most Carried 4 | . 1 3 4 3 Average Carried 1 | . . 2 3 2 Final Capacity 10 | 8 8 8 10 5 Final Carried 3 | . 1 3 3 3 Class Distribution -------------------- 100% | Mutant Dominant Class ---------------- Mutant | -10/Materials Mutant | -10/Mines Mutant | -10/Exiles Mutant | -9/Mines Resources | -11 -10 -10 -10 -9 ----------- Run | Scr Mat Min Exi Min Matter Collected 471 | 211 90 101 . 69 Remotely . | . . . . . Salvage Created 576 | . 240 196 . 140 Parts 30 | . 15 9 . 6 Haulers Intercepted . | . . . . . Recyclers Shooed 1 | . . . . 1 Parts Field Recycled . | . . . . . Retrieved Matter . | . . . . . Parts Self-Destructed . | . . . . . Prevented . | . . . . . Kills | -11 -10 -10 -10 -9 ------- Run | Scr Mat Min Exi Min Combat Hostiles Destroyed 15 | . 5 4 . 6 Guns 10 | . 5 4 . 1 AOE 5 | . . . . 5 Classes Destroyed 3 | . 2 1 . . Worker 2 | . 2 . . . Tunneler 1 | . . 1 . . Grunt 15 | . 5 4 . 6 Best Kill Streak 7 | . 7 2 . 3 Combat Bots Only 5 | . 5 2 . 3 Max Kills in Single Turn 1 | . 1 1 . 1 Gunslinging . | . . . . . Exploded 1 | . . . . 1 Melee . | . . . . . Uniques/NPCs Destroyed . | . . . . . Combat | -11 -10 -10 -10 -9 -------- Run | Scr Mat Min Exi Min Damage Taken 925 | . 186 255 . 484 Core 293 | . 34 23 . 236 Absorbed by Shields . | . . . . . Core Remaining (%) 100 | 100 . . . . Volleys Fired 42 | . 13 18 . 11 Largest 2 | . 2 2 . 2 Hottest 80 | . 70 70 . 80 Shots Fired 70 | . 26 32 . 12 Gun 63 | . 26 32 . 5 Cannon . | . . . . . Launcher 7 | . . . . 7 Special . | . . . . . Kinetic 27 | . 13 14 . . Thermal 36 | . 13 18 . 5 Explosive 7 | . . . . 7 Electromagnetic . | . . . . . Robot Hit Streak 7 | . 6 7 . 7 Robot Miss Streak 3 | . 2 3 . 2 Penetration Max . | . . . . . Secondary Targets 2 | . 2 . . . Max Gunslinging Chain 1 | . 1 . . . Shots Hit Robots 45 | . 18 21 . 6 Core Hits 33 | . 11 11 . 11 Critical Kills . | . . . . . Critical Parts Destroyed . | . . . . . Critical Strikes 3 | . 1 2 . . Burn 3 | . 1 2 . . Melee Attacks . | . . . . . Impact . | . . . . . Slashing . | . . . . . Piercing . | . . . . . Sneak Attacks . | . . . . . Combat Hostiles . | . . . . . Follow-up Attacks . | . . . . . Damage Inflicted 1118 | . 250 272 . 596 Guns 547 | . 250 272 . 25 Cannons . | . . . . . Explosions 571 | . . . . 571 Melee . | . . . . . Ramming . | . . . . . Kinetic 257 | . 124 133 . . Thermal 448 | . 126 139 . 183 Explosive 413 | . . . . 413 Electromagnetic . | . . . . . Impact . | . . . . . Slashing . | . . . . . Piercing . | . . . . . Highest Corruption . | . . . . . Average Corruption . | . . . . . Corruption Purged . | . . . . . Corruption Blocked . | . . . . . Overload Shots . | . . . . . Overflow Damage . | . . . . . Projectiles . | . . . . . Explosions . | . . . . . Melee . | . . . . . Knockbacks . | . . . . . Impact . | . . . . . Kinetic . | . . . . . Secondary . | . . . . . Self-Inflicted Damage 86 | . . . . 86 Shots 3 | . . . . 3 Rammed . | . . . . . Targets Rammed . | . . . . . Kicked . | . . . . . Crushed . | . . . . . Highest Temperature 219 | . 219 8 . 5 Average Temperature 116 | . 127 3 . 5 Received Heat Transfer 336 | . 102 144 . 90 Siege Activations . | . . . . . Robots Corrupted . | . . . . . Combat Hostiles . | . . . . . Parts Fried . | . . . . . Impact Corruptions . | . . . . . Robots Melted . | . . . . . Combat Hostiles . | . . . . . Parts Melted 3 | . 3 . . . Heat Transferred 1273 | . 444 555 . 274 Parts Sabotaged . | . . . . . Parts Stolen . | . . . . . Parts Stripped . | . . . . . Power Chain Reactions . | . . . . . Missiles Intercepted . | . . . . . Alert | -11 -10 -10 -10 -9 ------- Run | Scr Mat Min Exi Min Peak Influence 361 | . 165 119 . 361 Initial 64 | . . 64 . . Average 98 | . 103 63 . 299 Maximum Alert Level 1 | . . . . 1 Low Security (%) 87 | 100 100 100 . 1 Level 1 12 | . . . . 98 Level 2 . | . . . . . Level 3 . | . . . . . Level 4 . | . . . . . Level 5 . | . . . . . High Security . | . . . . . Max Security . | . . . . . Squads Dispatched 1 | . 1 . . . Investigation 1 | . 1 . . . Extermination . | . . . . . Reinforcement . | . . . . . Assault . | . . . . . Garrison . | . . . . . Intercept . | . . . . . Searches Triggered . | . . . . . Construction Impeded . | . . . . . Haulers Reinforced . | . . . . . Active Scanning Responses . | . . . . . Cargo Convoy Interrupts . | . . . . . Stealth | -11 -10 -10 -10 -9 --------- Run | Scr Mat Min Exi Min Distress Signals 1 | . 1 . . . Communications Jammed . | . . . . . Distress Signals . | . . . . . Times Spotted 18 | . 7 4 . 7 Peak Tracking Total 4 | . 4 2 . 3 Tactical Retreats . | . . . . . Traps | -11 -10 -10 -10 -9 ------- Run | Scr Mat Min Exi Min Traps Triggered 1 | . 1 . . . Indirectly . | . . . . . Trap Hack Attempts . | . . . . . Triggered . | . . . . . Disarmed . | . . . . . Reprogrammed . | . . . . . Reused . | . . . . . Traps Extracted . | . . . . . Installed . | . . . . . Triggered . | . . . . . Machines | -11 -10 -10 -10 -9 ---------- Run | Scr Mat Min Exi Min Machines Disabled 7 | . . . . 7 Max in Single Turn 7 | . . . . 7 Machines Sabotaged . | . . . . . Garrisons Compromised . | . . . . . Overloaded Fab Kills . | . . . . . Hacking | -11 -10 -10 -10 -9 --------- Run | Scr Mat Min Exi Min Machines Accessed 4 | . 3 . 1 . Terminals 3 | . 3 . . . Fabricators . | . . . . . Repair Stations . | . . . . . Recycling Units . | . . . . . Scanalyzers . | . . . . . Garrison Access . | . . . . . Total Hacks 6 | . 5 . 1 . Successful 3 | . 2 . 1 . Failed 3 | . 3 . . . Catastrophic 1 | . 1 . . . Database Lockouts . | . . . . . Manual 4 | . 4 . . . Terminals 5 | . 5 . . . Fabricators . | . . . . . Repair Stations . | . . . . . Recycling Units . | . . . . . Scanalyzers . | . . . . . Garrison Access . | . . . . . Terminal Hacks 3 | . 2 . 1 . Record 1 | . . . 1 . Branch Access Points 1 | . 1 . . . Registered Components 1 | . 1 . . . Fabricator Hacks . | . . . . . Repair Station Hacks . | . . . . . Recycling Unit Hacks . | . . . . . Scanalyzer . | . . . . . Garrison Access Hacks . | . . . . . Unauthorized Hacks . | . . . . . Terminals . | . . . . . Fabricators . | . . . . . Repair Stations . | . . . . . Recycling Units . | . . . . . Scanalyzers . | . . . . . Garrison Access . | . . . . . Data Cores Recovered . | . . . . . Used . | . . . . . Hacking Detections 2 | . 2 . . . Full Trace Events . | . . . . . Feedback Events . | . . . . . Feedback Blocked . | . . . . . Robot Schematics Acquired . | . . . . . Robots Built . | . . . . . Authchips . | . . . . . Time . | . . . . . Total Robot Build Rating . | . . . . . Part Schematics Acquired . | . . . . . Parts Built . | . . . . . Authchips . | . . . . . Time . | . . . . . Total Part Build Rating . | . . . . . Parts Repaired . | . . . . . Time . | . . . . . Parts Recycled . | . . . . . Recycled Matter . | . . . . . Retrieved Matter . | . . . . . Retrieved Components . | . . . . . Parts Scanalyzed . | . . . . . Part Schematics Acquired . | . . . . . Parts Damaged . | . . . . . Bothacking | -11 -10 -10 -10 -9 ------------ Run | Scr Mat Min Exi Min Used RIF Installer . | . . . . . Robots Hacked . | . . . . . Non-combat . | . . . . . Combat . | . . . . . Robot Hacks Applied . | . . . . . Relay Couplers Released . | . . . . . Fabnet Peak Effective % . | . . . . . Robots Rewired . | . . . . . Allies Hacked . | . . . . . Hacks Repelled . | . . . . . Allies | -11 -10 -10 -10 -9 -------- Run | Scr Mat Min Exi Min Total Allies . | . . . . . Largest Group . | . . . . . Highest-Rated Group . | . . . . . Highest-Rated Ally . | . . . . . Total Orders . | . . . . . Ally Attacks . | . . . . . Total Damage . | . . . . . Kills . | . . . . . Allies Corrupted . | . . . . . Allies Melted . | . . . . . Intel | -11 -10 -10 -10 -9 ------- Run | Scr Mat Min Exi Min Robot Analysis Total . | . . . . . Derelict Logs Recovered . | . . . . . Drone Launches . | . . . . . Drone Recoveries . | . . . . . Exploration | -11 -10 -10 -10 -9 ------------- Run | Scr Mat Min Exi Min Turns Passed 1508 | 86 273 731 255 163 Spaces Moved 834 | 50 142 421 159 62 Core 8 | 2 . . . 6 Treads 826 | 48 142 421 159 56 Legs . | . . . . . Wheels . | . . . . . Hover . | . . . . . Flight . | . . . . . Fastest Speed 50 | 50 160 160 160 50 Average Speed 164 | 155 160 160 160 220 Slowest Speed 240 | 160 160 160 160 240 Overloaded Moves . | . . . . . Propulsion Burnouts . | . . . . . Robots Hopped . | . . . . . Cave-ins Triggered . | . . . . . Exploration Rate (%) 41 | 4 36 81 49 35 Regions Visited 4 Branch Regions 3 Pre-discovered Areas 1 | . . . 1 . Known Exits Taken 1 | . 1 . . . Unknown Exits Taken 3 | 1 . 1 1 . Scrap Searched 1 | . . 1 . . Spaces Dug . | . . . . . Terrain Destroyed 48 | . . . . 48 Melee . | . . . . . Projectile . | . . . . . AOE 48 | . . . . 48 Terrain Rammed . | . . . . . Walls Destroyed . | . . . . . Machines Disabled . | . . . . . Actions | -11 -10 -10 -10 -9 --------- Run | Scr Mat Min Exi Min Total 898 | 55 161 446 160 76 Wait 11 | . 5 6 . . Move 830 | 49 141 420 158 62 Hop . | . . . . . Pick Up 3 | . 1 1 . 1 Fast Attach 8 | 6 1 . . 1 Attach 1 | . . . . 1 Detach . | . . . . . Swap 2 | . . 1 1 . Drop 1 | . . . 1 . Fire 42 | . 13 18 . 11 Melee . | . . . . . Ram . | . . . . . Kick . | . . . . . Crush . | . . . . . Escape Stasis . | . . . . . Rewire . | . . . . . Trap . | . . . . . Miscellaneous . | . . . . . Route ------- -11/Scrapyard -10/Materials (discovered 3 exits: [*Mat] / *Min x2) -10/Mines -10/Exiles -9/Mines History --------- Turn | Location | Event 29 | -11/Scrapyard | Discovered new exit (range 16) 87 | -11/Scrapyard | Entered Materials 270 | -10/Materials | Identified exit to Mines 306 | -10/Materials | Build established: Mutant 339 | -10/Materials | Discovered new exit (range 11) 360 | -10/Materials | Entered Mines 522 | -10/Mines | Deemed a non-threat by the Exiles lab entrance 523 | -10/Mines | Discovered new exit (range 5) 1091 | -10/Mines | Entered Exiles 1130 | -10/Exiles | Met 8R-AWN 1159 | -10/Exiles | Met EX-HEX 1221 | -10/Exiles | Met EX-DEC 1227 | -10/Exiles | Learned location of Zion (-6) 1330 | -10/Exiles | Discovered new exit (range 12) 1346 | -10/Exiles | Entered Mines 1434 | -9/Mines | Core integrity fell below 50% 1466 | -9/Mines | Assembled infested the area 1506 | -9/Mines | Released all parts (3) 1508 | -9/Mines | Core integrity fell below 20% 1509 | -9/Mines | Destroyed by D-53 Grenadier with Mini Grenade Launcher Last Messages --------------- 01441_ G-47 Trooper destroyed. 01441_ K-01 Serf collects debris. 01444_ Acquired Ion Engine. 01448_ Acquired 30 matter. 01451_ Acquired 39 matter. 01455_ R-06 Scavenger collects Aluminum Leg. 01459_ R-06 Scavenger collects Ion Engine. 01466_ ALERT: Infestation in the mines, dispatching Demolisher response squad. 01493_ The unstable cave ceiling collapses. 01501_ Grenade Launcher destroyed. 01504_ The unstable cave ceiling collapses. 01505_ Med. Laser destroyed. 01505_ Ion Engine destroyed. 01506_ Released Med. Storage Unit. 01506_ Released Lgt. Treads. 01506_ Released Imp. Heat Sink. 01506_ Acquired Med. Storage Unit. 01507_ R-06 Scavenger destroyed. 01509_ The unstable cave ceiling collapses. Map ----- +----------------------------------------------------+ | | | | | | | ?????????????????????????????????????????????????? | | ?????????????????????????????????????????????????? | | ?????????????????????????????????????????????????? | | ?????????????????????????????????????????????????? | | ?????????????????????????????????????????????????? | | ?????????????????????????????????????????????????? | | ?????????????????????????????????????????????????? | | ?????????????????????????????????????????????????? | | ?????????????????????????????????????????????????? | | ??????????????????# #?##?????????????????????????? | | ???????????????? ?????????????????????????? | | ??????????????? #????????????????????????? | | ?????????????? % ????????????????????????? | | ??????????????? # ?###????????????????????? | | ??????????????## # # ###??????????????????? | | ??????????????# # ???????????????????? | | ???????????????# # ????????????????????? | | ????????????????? < ????????????????????? | | ?????????????????## ?????????????????????? | | ????????????????## d #?????????????????????? | | ???????????###### #?????????????????????? | | ???????????# ##????????????????????? | | ???????????# $ @ #????????????????????? | | ????????????????#% % #????????????????????? | | ????????????????# % #?####???????????????? | | ????????????????## #### ##??????????????? | | ?????????????????## # #?# #??????????????? | | ?????????????????# ## ##?????????????? | | ?????????????????# ## ##????????????? | | ???????????# ###### ! ## #######??????? | | ???????????# # ##?????? | | ???????????????#### #?????? | | ??????????????????## #### #####?? | | ???????????????????### #??# # ## ##? | | ?????????????????????## ??## ### ## | | ??????????????????????## #??####?## # | | ???????????????????????## #???????# | | ????????????????????????# ???????#### | | ???????????????????????? #?????????### | | ???????????????????????? #???????????# | | ????????????????????????$ #???????????# ##### | | ???????????????????????? ##??????????# ##???? | | ???????????????????????? ###????????? #????? | | ????????????????????????#????????? #????? | | ????????????????????????????????? ##????? | | ????????????????????????????????### ####?????? | | ??????????????????????????????????## ?????????? | +----------------------------------------------------+ Best States ------------- Heat Dissipation 39 Energy Generation 10 Energy Capacity 250 Matter Stores 300 Matter Capacity 300 Sight Range 16 Terrain Scan Density 10 Evasion (%) 40 Recoil Reduction 2 Item Schematics ----------------- None Robot Schematics ------------------ None Fabricated ------------ Nothing Alien Tech Used ----------------- None Achievements -------------- None Challenges ------------ None Game ------ Seed UltimateAnalysisLoader Manual? 0 Play Time 00:06:44 Cumulative 34.2 hours Start 2022.12.13 @ 14:49:03 End 2022.12.13 @ 14:55:06 Sessions 1 Manual Loads 0 Difficulty Rogue Special Mode None Game No. 28 Rogue 28 Adventurer 0 Explorer 0 Win Type - Total 0 Types 0/0/0/0/0/0/0/0/0 Lore% 38 Gallery% 44 Achievement% 42 Wizard Run 0 Options --------- ASCII 0 Keyboard 1 Movement Vi Keybinds 0 Fullscreen 2 Font 18/Terminus Map View 76x50 Tactical HUD 1 Map Filters NONE Filters NONE Steam X RUN: 87ba69eb-bcb9-40eb-a56c-c05baa7b23f9